bitfinex-derivatives/quotes_ETHF0:USTF0_20250926
["timestamp","ask_amount","ask_price","bid_price","bid_amount"]
[1758884824493,0.4634,3881.7,3881.1,1.0164]
[1758884824799,0.3707,3881.5,3881.4,0.7544]
[1758884825002,4.26938,3881.8,3881.7,0.4691]
[1758884825303,4.51738,3881.8,3881.7,0.7311]
[1758884825491,3.5648,3881.8,3881.1,0.2559]
[1758884825695,0.357,3881.3,3881.2,0.987]
[1758884825996,3.449,3881.8,3881.7,0.4691]
[1758884826194,0.2412,3881.8,3881.7,0.7311]
[1758884826400,0.4892,3881.8,3881.7,0.7311]
[1758884826599,0.8462,3881.8,3881.7,0.498]
[1758884826900,0.5982,3881.1,3881.0,4.14037]
[1758884827102,0.5982,3881.1,3881.0,4.40237]
[1758884827504,0.8462,3881.1,3881.0,4.40237]
[1758884827694,0.357,3881.1,3881.0,4.65827]
[1758884827894,0.3868,3881.5,3881.4,0.93252]
[1758884828105,3.449,3881.8,3881.7,0.93249]
[1758884828303,0.5842,3881.8,3881.7,1.19449]
[1758884828501,0.343,3881.8,3881.7,4.65689]
[1758884828698,0.8279,3881.8,3881.7,0.46339]
[1758884828899,0.70299,3881.7,3881.6,0.7126]
[1758884829098,0.94829,3881.7,3881.6,0.5112]
[1758884829507,1.29129,3881.7,3881.6,0.2492]
[1758884829809,0.4843,3881.5,3881.4,40.8]
[1758884829997,0.4843,3881.5,3881.4,0.72542]
[1758884829998,1.18731,3881.5,3881.4,0.72542]
[1758884830308,1.29132,3881.4,3881.3,3.2078]
[1758884830498,1.29132,3881.4,3881.3,3.4708]
[1758884830696,0.8279,3881.4,3881.3,3.4698]
[1758884830893,0.8279,3881.4,3881.3,4.18243]
[1758884831100,0.8279,3881.4,3881.3,4.42733]
[1758884832197,0.8279,3881.4,3881.3,3.92043]
[1758884832399,1.29132,3881.4,3881.3,4.42833]
[1758884832700,1.29132,3881.4,3881.3,3.9649]
[1758884833102,1.29132,3881.4,3881.3,3.4708]
[1758884833398,1.29132,3881.4,3881.3,0.263]
[1758884833997,0.8279,3881.4,3881.3,0.97563]
[1758884834197,0.8279,3881.4,3881.3,1.22053]
[1758884834603,0.5826,3881.4,3881.3,1.22053]
[1758884834807,0.343,3881.4,3881.3,1.47513]
[1758884835204,1.29132,3881.4,3881.3,0.263]
[1758884835802,1.29135,3881.2,3881.1,0.2492]
[1758884836004,0.8279,3880.9,3880.8,3.7019]
[1758884836203,1.29138,3880.9,3880.8,3.7019]
[1758884836403,1.29138,3880.9,3880.8,3.72]
[1758884836996,0.8279,3880.9,3880.8,4.18349]
[1758884837202,0.5826,3880.9,3880.8,4.42839]
[1758884837402,1.04608,3880.9,3880.8,3.9649]
[1758884837709,1.04608,3880.9,3880.8,4.42839]
[1758884837906,0.5826,3880.9,3880.8,4.42839]
[1758884838205,1.04608,3880.9,3880.8,3.9649]
[1758884838507,1.29138,3880.9,3880.8,3.9649]
[1758884838704,0.5826,3880.9,3880.8,3.9649]
[1758884838907,0.5826,3880.9,3880.8,4.42839]
[1758884839103,1.04608,3880.9,3880.8,4.42839]
[1758884839309,1.04608,3880.9,3880.8,4.2195]
[1758884839706,1.04608,3880.9,3880.8,4.68299]
[1758884839907,1.04608,3880.9,3880.8,4.2195]
[1758884840412,1.29138,3880.9,3880.8,3.9649]
[1758884840811,0.5826,3880.9,3880.8,4.68299]
[1758884841007,1.04608,3880.9,3880.8,4.42839]
[1758884841211,1.04608,3880.9,3880.8,3.9649]
[1758884841716,1.29138,3880.9,3880.8,3.9649]
[1758884842012,1.18743,3880.5,3880.4,4.16544]
[1758884842201,1.43273,3880.5,3880.4,4.18354]
[1758884842602,1.43273,3880.5,3880.4,3.72]
[1758884842808,1.57318147,3880.5,3880.4,3.72]
[1758884843110,1.43273,3880.5,3880.4,3.72]
[1758884843311,1.43273,3880.5,3880.4,3.9649]
[1758884843711,1.43273,3880.5,3880.4,3.72]
[1758884844311,1.43273,3880.5,3880.4,0.7571]
[1758884844703,1.43273,3880.5,3880.4,0.5122]
[1758884845016,0.3809,3880.5,3880.4,0.95764]
[1758884845312,0.60483,3880.5,3880.4,1.0117]
[1758884845511,1.18743,3880.5,3880.4,1.0117]
[1758884845709,1.18743,3880.5,3880.4,0.7571]
[1758884845913,1.43273,3880.5,3880.4,0.7571]
[1758884846113,1.43273,3880.5,3880.4,0.5122]
[1758884846506,4.07458993,3880.5,3880.4,0.5122]
[1758884846706,4.07458993,3880.5,3880.4,0.7571]
[1758884847104,4.07458993,3880.5,3880.4,1.0117]
[1758884847105,0.46353,3880.5,3880.4,1.0117]
[1758884847315,0.80653,3880.5,3880.4,1.0117]
[1758884847516,1.18743,3880.5,3880.4,0.7571]
[1758884847712,1.43273,3880.5,3880.4,0.7571]
[1758884848112,1.43273,3880.5,3880.4,0.5122]
[1758884848611,1.43273,3880.5,3880.4,0.2492]
[1758884848813,1.43273,3880.5,3879.9,44.93681147]
[1758884848814,0.80659,3880.0,3879.9,44.93681147]
[1758884849112,1.43285,3879.5,3879.4,3.2078]
[1758884849326,4.07470993,3879.5,3879.4,3.2078]
[1758884849707,4.07470993,3879.5,3879.3,0.263]
[1758884849907,1.43291,3879.0,3878.9,3.457]
[1758884850105,4.07476993,3879.0,3878.9,3.2078]
[1758884850306,4.07476993,3879.0,3878.4,3.457]
[1758884850307,0.9692,3878.5,3878.4,3.457]
[1758884850516,0.9692,3878.5,3878.4,3.72]
[1758884850821,0.9692,3878.5,3878.4,44.52]
[1758884851113,0.9692,3878.5,3878.4,3.9649]
[1758884852011,0.7239,3878.5,3878.4,3.9649]
[1758884852216,0.343,3878.5,3878.4,4.2195]
[1758884853020,0.7239,3878.5,3878.4,3.9649]
[1758884853216,0.4843,3878.5,3878.4,3.9649]
[1758884853418,0.4843,3878.5,3878.4,4.2195]
[1758884853621,0.1413,3879.0,3878.9,0.4941]
[1758884853622,0.84461,3879.0,3878.9,0.4941]
[1758884853817,1.08991,3879.0,3878.9,0.7571]
[1758884854018,1.08991,3879.0,3878.9,0.263]
[1758884854216,0.9692,3879.0,3878.4,3.2078]
[1758884854421,1.43297,3878.5,3878.4,3.457]
[1758884854623,1.43297,3878.5,3878.4,3.9649]
[1758884855019,1.43297,3878.5,3878.4,3.7019]
[1758884855319,1.43297,3878.5,3878.4,3.2078]
[1758884855520,1.43297,3878.5,3878.4,3.4708]
[1758884856025,1.43297,3878.5,3878.4,0.263]
[1758884856519,1.57071783,3878.5,3878.4,0.263]
[1758884857114,0.46383,3878.0,3877.9,43.78189412]
[1758884857315,1.18773,3878.0,3877.9,3.9649]
[1758884857819,0.94813,3878.0,3877.9,3.9649]
[1758884858020,1.15935,3878.8,3878.7,0.2434]
[1758884858021,0.3688,3878.8,3878.7,0.2434]
[1758884858224,3.2078,3878.9,3878.8,0.7189]
[1758884858436,0.9772,3878.5,3878.4,0.2292]
[1758884858721,0.3688,3879.0,3878.9,0.4726]
[1758884858927,0.3688,3879.0,3878.9,0.9819]
[1758884859124,3.2078,3879.3,3879.2,0.93629]
[1758884859324,0.83244,3879.6,3879.5,0.7189]
[1758884859527,0.4717,3879.3,3878.9,3.2078]
[1758884859733,0.1367,3879.5,3878.5,0.4726]
[1758884859734,0.46376,3878.6,3878.5,0.4726]
[1758884859923,0.83256,3878.6,3878.5,0.7366]
[1758884860117,0.46374,3878.8,3878.7,0.4726]
[1758884860323,0.46379,3878.4,3878.3,0.7189]
[1758884860534,0.46379,3878.4,3877.8,3.2078]
[1758884860535,0.2302,3878.4,3877.8,3.2078]
[1758884860727,8.7814457,3878.6,3877.9,1.20044]
[1758884860728,0.7357,3878.0,3877.9,1.20044]
[1758884860927,0.7357,3878.0,3877.9,1.44674]
[1758884860928,0.3688,3878.0,3877.9,1.44674]
[1758884861229,0.46379,3878.3,3878.0,0.46382]
[1758884861428,0.1367,3878.5,3877.8,44.0078]
[1758884861429,0.5055,3878.5,3878.3,0.2463]
[1758884861622,0.3688,3878.9,3878.4,1.20038]
[1758884861929,0.46379,3878.3,3878.2,3.2078]
[1758884862127,1.19953,3878.0,3877.9,0.2292]
[1758884862428,1.44103,3878.0,3877.9,0.4932]
[1758884863139,1.44103,3878.0,3877.9,1.20044]
[1758884863833,1.44103,3878.0,3877.9,0.7366]
[1758884864034,1.44103,3878.0,3877.9,1.20044]
[1758884864341,0.3688,3878.0,3877.9,1.44674]
[1758884864532,0.3688,3878.4,3878.3,0.69299]
[1758884864737,0.3688,3878.4,3878.3,1.44669]
[1758884865136,0.5055,3878.5,3878.4,0.93638]
[1758884865725,7.7587357,3879.0,3878.4,0.93638]
[1758884865726,0.3669,3879.0,3878.9,0.93632]
[1758884866042,0.3669,3879.0,3878.9,1.20032]
[1758884866233,0.599,3879.2,3879.1,0.9363]
[1758884866438,3.3445,3879.5,3879.4,0.93626]
[1758884866439,3.9435,3879.5,3879.4,0.93626]
[1758884866639,4.40715,3879.5,3879.4,1.20026]
[1758884866937,0.7357,3879.5,3879.4,1.20026]
[1758884867234,3.3445,3880.0,3879.9,0.4636]
[1758884867437,3.9435,3880.0,3879.9,1.2002]
[1758884867637,3.9435,3880.0,3879.9,0.7366]
[1758884868135,1.9761064,3882.5,3880.1,0.3518]
[1758884868337,0.46331,3882.4,3881.9,0.46336]
[1758884868543,3.2078,3882.6,3882.0,0.265]
[1758884868744,0.48525,3882.9,3882.4,0.4633]
[1758884868941,0.022,3882.9,3882.7,0.46326]
[1758884869241,3.2078,3883.9,3883.6,0.46315]
[1758884869445,0.1367,3884.5,3883.6,0.3518]
[1758884869632,0.1367,3884.0,3883.7,0.265]
[1758884869832,0.1367,3884.0,3883.5,3.2078]
[1758884870034,0.59982,3884.0,3883.6,0.265]
[1758884870336,0.3688,3883.9,3883.6,0.265]
[1758884870540,0.1367,3884.0,3883.6,0.6168]
[1758884870737,0.3688,3883.8,3883.6,0.265]
[1758884870932,0.46313,3883.9,3883.6,0.265]
[1758884871128,0.3688,3883.7,3883.6,0.265]
[1758884871941,0.3688,3883.4,3883.0,3.2078]
[1758884872129,7.9908357,3883.3,3883.0,3.2078]
[1758884872325,0.3688,3883.1,3883.0,3.2078]
[1758884872731,5.3688,3883.1,3882.7,0.265]
[1758884872936,0.3688,3882.8,3882.0,3.2078]
[1758884873131,0.3688,3882.1,3882.0,3.2078]
[1758884873326,0.3688,3882.1,3882.0,3.4728]
[1758884874133,0.3688,3883.1,3882.7,0.46326]
[1758884874334,3.80768,3883.5,3883.0,3.2078]
[1758884874335,8.2219157,3883.5,3883.0,3.2078]
[1758884874535,0.3688,3883.4,3883.2,0.3518]
[1758884875048,0.3688,3883.4,3883.1,0.265]
[1758884875238,0.46316,3883.6,3883.1,0.265]
[1758884875438,0.46319,3883.4,3883.1,0.265]
[1758884875736,0.4632,3883.3,3883.1,0.6168]
[1758884875941,8.0852157,3883.5,3883.1,0.6168]
[1758884876144,0.4632,3883.3,3883.1,0.6168]
[1758884876342,0.3688,3883.2,3883.1,0.265]
[1758884878737,0.3688,3883.2,3882.6,3.2078]
[1758884878936,0.83207,3882.7,3882.6,3.2078]
[1758884879137,0.83207,3882.7,3882.6,3.4738]
[1758884879342,0.3688,3882.7,3882.6,3.4738]
[1758884879538,0.3688,3883.0,3882.7,0.3518]
[1758884879739,0.46325,3882.9,3882.6,3.4738]
[1758884879934,7.9908357,3883.4,3882.7,0.3518]
[1758884880139,0.3688,3882.7,3882.6,3.2078]
[1758884880340,0.3688,3882.7,3882.6,3.4738]
[1758884880541,0.3688,3882.7,3882.6,3.2078]
[1758884880737,0.3688,3882.7,3882.6,3.4738]
[1758884881043,0.3688,3882.7,3882.6,0.266]
[1758884881441,0.83205,3882.9,3882.6,0.266]
[1758884881643,0.83201,3883.3,3882.7,0.81507]
[1758884881944,3.2078,3883.5,3882.7,0.3518]
[1758884882140,0.3688,3883.4,3882.7,0.3518]
[1758884882336,0.46324,3883.0,3882.7,0.3518]
[1758884882636,0.3688,3882.7,3882.6,3.4738]
[1758884883634,0.3688,3882.7,3882.6,0.266]
[1758884883835,0.3688,3882.7,3882.2,3.2078]
[1758884884040,0.3688,3882.3,3882.2,3.5596]
[1758884884247,7.6220357,3882.6,3882.2,3.5596]
[1758884884447,0.3688,3882.5,3882.3,0.3518]
[1758884884950,0.3618,3882.3,3882.2,3.2078]
[1758884885247,0.46331,3882.4,3882.2,3.2078]
[1758884885548,0.3618,3882.3,3882.2,3.5709]
[1758884885745,0.3618,3882.3,3882.2,3.2078]
[1758884885941,0.82512,3882.3,3882.2,3.2078]
[1758884887061,0.82517,3881.9,3881.8,1.92003634]
[1758884887259,8.4472057,3881.9,3881.8,1.92003634]
[1758884887458,0.3618,3882.1,3881.8,2.28313634]
[1758884887660,0.46335,3882.1,3881.9,0.3631]
[1758884887959,0.46336,3882.0,3881.9,0.3631]
[1758884888164,0.3807,3881.9,3881.8,1.92003634]
[1758884889669,0.87226,3882.0,3881.3,0.3631]
[1758884889670,0.3807,3881.7,3881.3,0.3631]
[1758884889961,0.3807,3881.7,3881.0,3.3473]
[1758884889962,0.84416,3881.1,3881.0,3.5803]
[1758884890168,0.84416,3881.1,3881.0,3.8463]
[1758884890359,0.46345,3881.3,3881.0,3.5803]
[1758884890560,0.46346,3881.2,3881.1,0.3725]
[1758884890755,0.84416,3881.1,3881.0,0.266]
[1758884891360,8.4661957,3881.1,3881.0,0.266]
[1758884891664,0.84421,3880.7,3880.6,0.3725]
[1758884892366,0.46349,3880.9,3880.6,0.3725]
[1758884892566,0.4635,3880.8,3880.6,0.3725]
[1758884892766,0.46351,3880.7,3880.6,0.3725]
[1758884892966,0.46352,3880.6,3880.5,3.6284]
[1758884893156,0.84422,3880.6,3880.5,3.2078]
[1758884893557,0.46357,3880.2,3880.1,0.3725]
[1758884893760,0.84427,3880.2,3880.1,0.3725]
[1758884894372,0.84428,3880.1,3880.0,0.266]
[1758884894665,0.84434,3879.6,3879.5,3.2078]
[1758884894865,0.84434,3879.6,3879.5,3.8463]
[1758884895064,0.84434,3879.6,3879.5,0.266]
[1758884896469,0.84434,3879.6,3879.5,0.6385]
[1758884897870,0.84434,3879.6,3879.5,0.266]
[1758884898560,0.46369,3879.2,3879.1,3.5803]
[1758884898760,0.46369,3879.2,3879.1,3.8463]
[1758884899065,0.0257,3879.3,3879.2,0.3725]
[1758884899461,0.4636,3879.9,3879.4,0.46366]
[1758884899668,3.2078,3880.4,3879.6,0.3725]
[1758884899864,0.46358,3880.1,3880.0,0.1546]
[1758884900063,0.46358,3880.1,3880.0,0.4206]
[1758884900468,0.46358,3880.1,3880.0,0.7931]
[1758884902468,0.46362,3879.8,3879.6,0.3725]
[1758884902671,0.46363,3879.7,3879.6,0.3725]
[1758884902876,0.46363,3879.7,3879.6,0.6385]
[1758884903471,0.4636,3880.0,3879.7,0.3725]
[1758884903665,0.4636,3880.0,3879.9,3.5803]
[1758884904271,0.0257,3880.4,3880.1,0.3725]
[1758884904467,0.0257,3880.4,3880.0,0.1546]
[1758884904468,0.0257,3880.4,3880.3,3.2078]
[1758884904668,0.0257,3880.4,3880.3,3.5803]
[1758884905167,0.46364,3879.6,3879.5,3.3624]
[1758884905470,0.46364,3879.6,3879.5,3.6284]
[1758884905671,0.46364,3879.6,3879.5,4.0009]
[1758884906172,1.15896,3880.1,3879.6,0.3725]
[1758884906370,7.6477357,3880.4,3880.0,3.2078]
[1758884906672,0.84426,3880.3,3880.2,0.3725]
[1758884907278,0.46358,3880.1,3880.0,3.2078]
[1758884907574,0.46358,3880.1,3880.0,3.8463]
[1758884907774,0.46358,3880.1,3880.0,4.0009]
[1758884908071,0.46358,3880.2,3880.1,0.3725]
[1758884908671,3.2078,3880.6,3880.0,3.6284]
[1758884908873,0.3807,3881.2,3880.6,0.3725]
[1758884909174,0.46344,3881.3,3881.1,0.83596]
[1758884909368,0.46344,3881.3,3881.2,0.6385]
[1758884909765,3.2078,3881.4,3881.3,0.83594]
[1758884909963,3.2078,3881.4,3881.3,0.3725]
[1758884911474,0.46346,3881.1,3881.0,0.1546]
[1758884911678,0.4635,3880.8,3880.6,40.8]
[1758884911973,0.8442,3880.8,3880.7,0.266]
[1758884912369,0.8442,3880.8,3880.5,3.2078]
[1758884912370,0.84422,3880.6,3880.5,3.2078]
[1758884912670,0.46355,3880.4,3880.1,3.67138]
[1758884912979,0.3807,3880.3,3880.2,0.266]
[1758884913274,0.3807,3880.4,3880.1,3.67138]
[1758884913477,0.3807,3880.4,3880.2,0.266]
[1758884913674,0.3807,3880.3,3880.2,0.266]
[1758884913971,0.3807,3880.3,3880.2,0.6385]
[1758884914171,0.46352,3880.6,3880.2,1.10206]
[1758884914371,11.2387357,3881.0,3880.2,1.10206]
[1758884914372,0.46354,3880.5,3880.2,1.10206]
[1758884914565,0.84425,3880.4,3880.2,1.10206]
[1758884914771,0.84425,3880.4,3880.2,0.266]
[1758884914772,0.3807,3880.3,3880.2,0.266]
[1758884914975,0.3807,3880.5,3880.2,0.72957]
[1758884915175,0.84424,3880.5,3880.3,0.3725]
[1758884915376,0.46356,3880.3,3880.1,3.2078]
[1758884915577,0.3807,3880.2,3880.1,3.2078]
[1758884915779,0.3807,3880.2,3880.1,3.4738]
[1758884915971,0.84427,3880.2,3880.1,3.2078]
[1758884916174,0.84427,3880.2,3880.1,3.4738]
[1758884916369,0.84427,3880.2,3880.1,3.2078]
[1758884916570,7.7649357,3880.5,3879.7,3.67143]
[1758884916571,0.6065,3880.0,3879.7,3.67143]
[1758884916874,0.3807,3879.8,3879.7,3.67143]
[1758884917076,0.3807,3879.8,3879.7,3.4738]
[1758884917582,0.3807,3880.2,3879.7,3.8463]
[1758884917879,0.3807,3880.2,3880.1,0.83607]
[1758884918073,0.3807,3880.2,3880.1,1.10207]
[1758884918377,0.3807,3880.2,3880.1,0.266]
[1758884919277,0.3567,3880.3,3880.1,0.266]
[1758884919478,3.5645,3880.3,3880.1,0.266]
[1758884919679,0.46357,3880.2,3880.1,0.266]
[1758884919879,0.3567,3880.2,3880.1,0.266]
[1758884920080,0.3567,3880.2,3880.1,1.07678]
[1758884920479,0.82023,3880.5,3880.2,0.46357]
[1758884920673,0.46356,3880.3,3880.2,0.3472]
[1758884920986,0.46357,3880.2,3880.1,0.266]
[1758884921174,0.3567,3880.2,3880.1,1.07678]
[1758884921475,0.4635,3880.8,3880.6,0.3472]
[1758884921680,0.46349,3880.9,3880.6,0.3472]
[1758884921871,3.2078,3881.1,3880.6,0.81072]
[1758884922075,0.3567,3880.9,3880.7,0.3472]
[1758884922275,0.3567,3880.7,3880.5,1.07573]
[1758884922478,0.1463,3881.0,3880.6,0.265]
[1758884922783,0.3567,3880.9,3880.6,0.6122]
[1758884922990,0.46351,3880.7,3880.6,0.6122]
[1758884923280,0.3567,3880.5,3880.4,0.46355]
[1758884923585,0.3567,3880.5,3880.4,1.07575]
[1758884924491,0.3567,3880.9,3880.7,0.46351]
[1758884924783,0.46349,3880.9,3880.7,0.3472]
[1758884924981,0.8202,3880.8,3880.7,0.3472]
[1758884925984,0.8202,3880.8,3880.7,0.81071]
[1758884926585,0.8202,3880.8,3880.7,0.3472]
[1758884927284,0.8202,3880.8,3880.6,0.46352]
[1758884927285,3.2078,3881.1,3881.0,0.81067]
[1758884927582,0.60633,3881.5,3881.1,0.3472]
[1758884927784,0.46344,3881.3,3881.2,0.3472]
[1758884927980,0.46346,3881.2,3881.0,0.3472]
[1758884928184,0.82016,3881.1,3881.0,0.3472]
[1758884928385,0.46347,3881.0,3880.9,0.265]
[1758884928690,0.3567,3880.7,3880.5,0.46353]
[1758884928982,0.3567,3880.6,3880.5,0.46353]
[1758884929181,0.3567,3880.6,3880.5,1.07573]
[1758884929381,0.3567,3880.6,3880.5,0.81073]
[1758884929578,0.3567,3880.6,3880.5,1.07573]
[1758884929788,1.32012,3880.6,3880.5,0.5919]
[1758884930476,0.8566,3880.6,3880.5,1.05543]
[1758884930676,0.8566,3880.6,3880.5,0.8254]
[1758884931482,1.32012,3880.6,3880.5,0.8254]
[1758884931683,0.8566,3880.6,3880.5,0.8254]
[1758884931884,1.32012,3880.6,3880.5,0.8254]
[1758884932479,0.46353,3880.5,3880.4,0.265]
[1758884932685,0.46358,3880.1,3879.8,0.3472]
[1758884932892,0.46358,3880.1,3879.5,1.07821147]
[1758884932893,0.2493,3879.5,3879.4,0.3472]
[1758884933187,0.2493,3879.5,3878.7,0.92361147]
[1758884933188,0.3567,3878.9,3878.7,0.92361147]
[1758884933483,0.3567,3878.9,3878.6,0.3472]
[1758884933484,0.3567,3878.7,3878.6,0.3472]
[1758884934274,0.3567,3878.6,3878.5,0.265]
[1758884935279,0.3567,3878.6,3878.1,0.265]
[1758884935280,0.503,3878.5,3878.1,0.265]
[1758884935476,0.82052,3878.2,3878.1,0.265]
[1758884935678,0.503,3878.0,3877.9,0.02578749]
[1758884935880,0.1463,3877.5,3877.0,3.82]
[1758884936080,3.3541,3877.5,3877.0,0.6122]
[1758884936393,3.3541,3877.5,3877.1,0.265]
[1758884936794,0.46392,3877.3,3876.9,0.265]
[1758884937085,0.503,3877.0,3876.9,0.265]
[1758884937277,0.3567,3877.0,3876.9,0.265]
[1758884937483,0.3567,3877.0,3876.9,0.3472]
[1758884937786,0.3567,3877.0,3876.9,0.6122]
[1758884937991,0.3567,3877.0,3876.9,0.265]
[1758884938384,0.3567,3876.9,3876.8,0.30890697]
[1758884939490,0.3567,3877.4,3876.8,0.65610697]
[1758884939793,3.2078,3877.9,3877.0,0.1467]
[1758884939988,6.3978,3877.9,3877.0,0.1467]
[1758884940193,0.3567,3877.9,3877.8,0.3472]
[1758884940488,0.3567,3877.9,3877.4,3.2078]
[1758884940489,0.3567,3878.2,3878.0,0.3472]
[1758884940691,3.2078,3878.3,3878.1,0.46382]
[1758884940987,3.67153,3878.8,3878.2,0.46379]
[1758884941195,0.3567,3878.9,3878.4,0.3472]
[1758884941395,0.1463,3879.0,3878.6,0.3472]
[1758884941686,0.3567,3878.9,3878.6,0.3472]
[1758884941893,0.3567,3878.9,3878.8,0.3472]
[1758884942395,9.34804205,3879.2,3878.8,0.3472]
[1758884942688,0.82042,3878.9,3878.4,0.265]
[1758884942892,0.3567,3878.9,3878.6,0.46375]
[1758884943104,0.61001,3879.0,3878.7,0.46374]
[1758884943289,0.3567,3878.9,3878.7,0.46374]
[1758884943481,0.1463,3879.0,3878.7,0.46374]
[1758884943683,0.1463,3879.0,3878.4,0.6122]
[1758884943887,0.3567,3878.9,3878.4,0.6122]
[1758884944093,0.46374,3878.8,3878.4,1.07598]
[1758884944283,8.88435205,3879.2,3879.1,0.3472]
[1758884944284,0.3567,3879.2,3879.1,0.3472]
[1758884944685,0.60692,3879.0,3878.6,3.2078]
[1758884944891,0.3682,3878.8,3878.6,3.5554]
[1758884945091,0.3682,3878.8,3878.7,0.265]
[1758884945290,9.34804205,3879.2,3878.8,0.3476]
[1758884945586,0.5145,3879.5,3879.0,0.46371]
[1758884945787,0.3682,3879.3,3879.1,0.3476]
[1758884945988,0.4637,3879.1,3878.8,0.3476]
[1758884946192,0.4637,3879.1,3878.7,0.265]
[1758884946497,0.4637,3879.1,3878.6,3.67155]
[1758884946498,0.46374,3878.8,3878.6,3.5554]
[1758884946699,0.3682,3878.7,3878.6,3.2078]
[1758884946892,0.3682,3878.7,3878.6,3.4728]
[1758884947400,0.3682,3878.7,3878.6,3.8204]
[1758884947996,0.4894,3879.1,3878.7,0.46374]
[1758884948193,0.0257,3879.1,3878.8,0.46373]
[1758884948496,0.4894,3879.1,3879.0,0.3506]
[1758884948692,0.4894,3879.1,3879.0,0.6156]
[1758884949697,0.8237,3879.1,3879.0,0.6156]
[1758884950696,0.36,3879.4,3879.2,0.3506]
[1758884950898,0.1463,3879.5,3879.0,0.265]
[1758884950899,0.46364,3879.6,3879.4,0.3506]
[1758884951087,0.36,3879.9,3879.4,0.3506]
[1758884951088,0.46365,3879.5,3879.4,0.3506]
[1758884951290,0.46365,3879.5,3879.1,3.2078]
[1758884951291,0.82369,3879.2,3879.1,3.2078]
[1758884952000,0.36,3879.2,3879.1,3.5584]
[1758884952188,0.46367,3879.4,3879.2,0.46368]
[1758884952495,0.0257,3879.6,3879.5,0.4938]
[1758884952695,0.0257,3879.6,3879.5,4.43025]
[1758884952888,0.0257,3879.6,3879.5,45.23025]
[1758884953295,0.0257,3879.6,3879.5,44.7666]
[1758884953500,0.0257,3879.6,3879.5,45.23025]
[1758884954900,0.76871198,3880.5,3879.9,0.4636]
[1758884955097,0.36,3880.3,3880.0,0.72859]
[1758884955290,0.36,3880.3,3880.2,0.3506]
[1758884955594,0.36,3880.5,3880.4,0.3506]
[1758884955995,0.36,3880.8,3880.5,0.3506]
[1758884956396,0.36,3880.8,3880.7,0.3506]
[1758884956596,8.88435205,3881.2,3880.7,0.3506]
[1758884956791,3.2078,3881.4,3880.7,0.3506]
[1758884956792,3.2078,3881.4,3880.9,0.46348]
[1758884957100,3.37056558,3881.4,3880.9,0.6156]
[1758884957598,0.36,3881.3,3880.9,0.72848]
[1758884957805,0.36,3881.2,3880.6,0.3506]
[1758884958104,0.8235,3880.7,3880.6,0.265]
[1758884958299,0.1472,3881.0,3880.4,3.2078]
[1758884958300,0.97073,3880.5,3880.4,3.2078]
[1758884958509,4.17853,3880.5,3880.4,0.265]
[1758884958897,0.97073,3880.5,3880.4,0.265]
[1758884959405,0.5072,3880.5,3880.4,0.265]
[1758884959701,0.97073,3880.5,3880.4,0.265]
[1758884959904,0.5072,3880.5,3880.4,0.265]
[1758884960297,0.97073,3880.5,3880.4,0.265]
[1758884960702,0.5072,3880.5,3880.4,0.265]
[1758884961005,0.97073,3880.5,3880.4,0.265]
[1758884961201,0.36,3880.2,3879.8,3.5584]
[1758884961410,0.36,3880.0,3879.9,0.265]
[1758884961615,0.36,3880.0,3879.9,0.7286]
[1758884961903,0.36,3880.0,3879.9,1.0792]
[1758884962604,3.355,3880.5,3879.9,0.6156]
[1758884962901,3.5678,3880.5,3880.3,0.81415]
[1758884963107,0.36,3880.4,3880.3,0.81415]
[1758884963306,0.36,3880.4,3880.3,0.3506]
[1758884963703,3.2078,3880.5,3880.4,0.46354]
[1758884963898,3.5678,3880.5,3880.3,0.72855]
[1758884964098,0.36,3880.4,3880.3,0.72855]
[1758884964909,0.36,3880.7,3880.6,0.46352]
[1758884965108,0.5982,3880.7,3880.6,1.30372]
[1758884965309,3.806,3880.9,3880.8,0.8402]
[1758884965516,3.806,3880.9,3880.8,1.30369]
[1758884965809,0.605,3881.3,3881.2,1.30364]
[1758884966001,0.605,3881.3,3881.2,0.81404]
[1758884966002,0.36,3881.3,3881.2,0.81404]
[1758884967203,3.5935,3881.4,3881.3,0.81403]
[1758884967608,0.36,3881.3,3881.2,0.6156]
[1758884968318,0.36,3880.9,3880.7,0.4635]
[1758884968509,0.82348,3880.9,3880.8,0.265]
[1758884968914,0.46352,3880.6,3880.3,0.46354]
[1758884969119,0.46354,3880.4,3880.3,0.265]
[1758884969714,0.82354,3880.4,3880.3,0.265]
[1758884970108,0.46348,3880.9,3880.5,0.46352]
[1758884970308,0.46348,3880.9,3880.3,0.265]
[1758884970309,0.8492,3880.7,3880.6,0.3506]
[1758884971018,0.82353,3880.5,3880.4,0.3506]
[1758884971320,0.36,3880.5,3880.4,0.3506]
[1758884971518,0.82353,3880.5,3880.4,0.3506]
[1758884971818,0.36,3880.4,3880.3,0.6156]
[1758884972013,0.36,3880.4,3880.3,1.07915]
[1758884972717,0.36,3880.4,3880.3,0.6156]
[1758884973021,0.36,3880.4,3880.3,1.07915]
[1758884973705,0.36,3880.4,3880.3,0.81415]
[1758884973912,0.82354,3880.4,3880.3,0.264]
[1758884974410,0.46357,3880.2,3880.1,3.17639358]